bitfinex-derivatives/quotes_BTCF0:USTF0_20210109
["timestamp","ask_amount","ask_price","bid_price","bid_amount"]
[1610160754545,5.1332,39720.0,39712.0,0.0002]
[1610160754946,5.1332,39720.0,39700.0,0.00790038]
[1610160755146,5.1332,39720.0,39713.0,0.0002]
[1610160755347,5.1332,39720.0,39701.0,0.0002]
[1610160755647,5.1332,39720.0,39700.0,0.0002]
[1610160756048,5.1332,39720.0,39702.0,0.0002]
[1610160756247,5.1332,39720.0,39701.0,0.0002]
[1610160756647,5.1332,39720.0,39703.0,0.0002]
[1610160756848,5.1332,39720.0,39692.0,0.00770178]
[1610160757047,5.1332,39720.0,39704.0,0.0002]
[1610160757248,0.13632608,39705.0,39692.0,0.00790178]
[1610160757447,0.13632608,39705.0,39692.0,0.00770178]
[1610160757846,0.13632608,39705.0,39692.0,0.0002]
[1610160758048,0.13632608,39705.0,39693.0,0.0002]
[1610160758549,0.13632608,39705.0,39692.0,0.0002]
[1610160758749,0.13632608,39705.0,39691.0,3.7105]
[1610160759149,0.13632608,39705.0,39692.0,0.0002]
[1610160759351,0.13632608,39693.0,39692.0,0.0002]
[1610160759950,0.13632608,39693.0,39686.0,0.00790235]
[1610160760149,0.13632608,39693.0,39692.0,0.0002]
[1610160760349,0.13632608,39693.0,39687.0,0.0002]
[1610160760749,0.13632608,39693.0,39686.0,0.00790235]
[1610160760952,0.13632608,39693.0,39679.0,3.3924]
[1610160760953,0.13632608,39693.0,39688.0,0.0002]
[1610160761150,0.13632608,39693.0,39687.0,0.0002]
[1610160761349,3.6527,39707.0,39687.0,0.0002]
[1610160761350,0.13632608,39688.0,39687.0,0.0002]
[1610160761549,0.13632608,39688.0,39679.0,3.3924]
[1610160761750,0.13632608,39688.0,39687.0,0.0002]
[1610160761951,0.13632608,39688.0,39687.0,0.10753]
[1610160762151,3.6527,39707.0,39687.0,0.10753]
[1610160762351,3.6527,39707.0,39687.0,0.10773]
[1610160762552,3.6527,39707.0,39688.0,0.00770194]
[1610160762751,3.6527,39707.0,39688.0,0.00790194]
[1610160763152,0.11636,39722.0,39688.0,0.00790194]
[1610160763354,0.11636,39722.0,39696.0,0.13632608]
[1610160763555,1.5,39730.0,39696.0,0.21851608]
[1610160763754,0.11782,39731.0,39697.0,0.00790021]
[1610160765157,1.5,39730.0,39697.0,0.00790021]
[1610160765356,0.13632608,39698.0,39697.0,0.00790021]
[1610160766561,0.13632608,39698.0,39697.0,0.00770021]
[1610160766757,0.13632608,39698.0,39697.0,0.00790021]
[1610160767758,0.13632608,39698.0,39697.0,0.0002]
[1610160771162,3.72432608,39698.0,39697.0,0.0002]
[1610160772564,5.22432608,39698.0,39697.0,0.0002]
[1610160773265,5.22432608,39698.0,39696.0,0.08219]
[1610160773465,5.22432608,39698.0,39678.0,0.09294]
[1610160773665,5.33284608,39698.0,39678.0,0.09294]
[1610160773866,5.33284608,39698.0,39679.0,0.0002]
[1610160774265,3.83284608,39698.0,39679.0,0.0002]
[1610160774465,1.5,39697.0,39679.0,0.0002]
[1610160775366,0.13632608,39680.0,39679.0,0.0002]
[1610160777469,0.57332608,39680.0,39679.0,0.0002]
[1610160778271,0.57332608,39680.0,39663.0,0.00790429]
[1610160778472,0.13632608,39680.0,39663.0,0.00790429]
[1610160778672,0.13632608,39680.0,39657.0,0.13632608]
[1610160778673,0.13632608,39680.0,39679.0,0.0002]
[1610160778873,0.13632608,39680.0,39669.0,0.10229]
[1610160779077,3.609,39675.0,39669.0,0.10229]
[1610160779273,3.609,39675.0,39670.0,0.0002]
[1610160781276,0.2745,39693.0,39670.0,0.0002]
[1610160781476,0.13632608,39671.0,39670.0,0.00790466]
[1610160782678,0.34131117,39680.0,39670.0,0.00790466]
[1610160782878,0.34131117,39680.0,39670.0,3.80000466]
[1610160783277,0.34131117,39680.0,39678.0,0.13632608]
[1610160783678,0.34131117,39680.0,39678.0,0.25917608]
[1610160783879,0.34131117,39680.0,39679.0,0.00790257]
[1610160785282,0.47763725,39680.0,39679.0,0.00790257]
[1610160785880,0.34131117,39680.0,39679.0,0.52190257]
[1610160786481,0.03360295,39680.0,39679.0,0.53846565]
[1610160787783,0.03360295,39680.0,39679.0,2.97515451]
[1610160787982,0.13632608,39706.0,39679.0,2.97515451]
[1610160788184,0.13632608,39706.0,39679.0,3.12726293]
[1610160788383,0.1957395,39680.0,39679.0,3.10279728]
[1610160788583,0.1957395,39680.0,39679.0,0.514]
[1610160788783,0.1957395,39680.0,39679.0,0.57406044]
[1610160789184,0.13632608,39706.0,39679.0,0.53830906]
[1610160789385,0.13632608,39706.0,39705.0,0.13632608]
[1610160789984,0.13632608,39706.0,39705.0,0.24840374]
[1610160791187,3.4097,39730.0,39705.0,0.24840374]
[1610160791387,0.13632608,39714.0,39713.0,0.13632608]
[1610160791789,0.13632608,39714.0,39713.0,0.13652608]
[1610160793090,0.2867,39741.0,39713.0,3.72052608]
[1610160793290,0.2867,39741.0,39713.0,3.81692608]
[1610160793490,0.2867,39741.0,39735.0,0.13632608]
[1610160793692,0.2867,39741.0,39737.0,2.9517]
[1610160794293,0.2867,39741.0,39738.0,0.0002]
[1610160795096,0.1569,39766.0,39738.0,0.0002]
[1610160795295,0.1569,39766.0,39738.0,0.0798]
[1610160795495,0.1569,39766.0,39748.0,0.13632608]
[1610160795696,0.1569,39766.0,39749.0,3.1956]
[1610160795895,0.1569,39766.0,39749.0,3.1958]
[1610160796295,0.1569,39766.0,39750.0,0.0002]
[1610160796496,0.1569,39766.0,39746.0,0.09354]
[1610160796497,3.2538,39766.0,39746.0,0.09354]
[1610160796696,3.0969,39766.0,39746.0,0.09354]
[1610160797097,0.08601,39768.0,39746.0,0.09354]
[1610160797496,0.13632608,39747.0,39746.0,0.09354]
[1610160798796,0.13632608,39747.0,39738.0,0.0796]
[1610160799399,0.13632608,39739.0,39738.0,0.0796]
[1610160800401,0.13632608,39739.0,39733.0,0.13632608]
[1610160800603,0.09196,39760.0,39733.0,0.13632608]
[1610160800902,0.09196,39760.0,39733.0,0.21649608]
[1610160801506,0.3467595,39741.0,39733.0,0.08017]
[1610160801902,0.3467595,39741.0,39733.0,3.74437]
[1610160803504,0.3467595,39741.0,39740.0,0.13632608]
[1610160804004,0.3467595,39741.0,39740.0,3.62552608]
[1610160809917,0.3467595,39741.0,39740.0,3.4892]
[1610160811419,0.48308558,39741.0,39740.0,3.62552608]
[1610160811619,0.48308558,39741.0,39733.0,0.08017]
[1610160811820,0.48308558,39741.0,39725.0,0.118]
[1610160812222,0.48308558,39741.0,39723.0,3.7287]
[1610160813422,0.3467595,39741.0,39732.0,0.13632608]
[1610160813623,0.3467595,39741.0,39732.0,0.12076]
[1610160815426,0.13632608,39733.0,39724.0,0.10276]
[1610160817128,0.3467595,39741.0,39724.0,3.00456]
[1610160817528,0.3467595,39741.0,39740.0,0.13632608]
[1610160823634,0.48308558,39741.0,39740.0,0.13632608]
[1610160826435,0.3467595,39741.0,39740.0,3.99012608]
[1610160826635,0.3467595,39741.0,39740.0,3.99032608]
[1610160828838,0.03947508,39741.0,39740.0,3.99032608]
[1610160832941,0.13632608,39749.0,39740.0,3.99032608]
[1610160833444,0.13632608,39749.0,39741.0,0.0002]
[1610160833643,0.13632608,39749.0,39748.0,0.22313608]
[1610160834643,0.13632608,39749.0,39748.0,0.22333608]
[1610160835144,0.1569,39777.0,39748.0,0.82363608]
[1610160835344,0.36714,39787.0,39748.0,0.22333608]
[1610160835545,0.36714,39787.0,39767.0,0.13632608]
[1610160835948,0.36714,39787.0,39768.0,3.6579]
[1610160837546,0.13632608,39769.0,39768.0,3.6579]
[1610160838453,0.13632608,39769.0,39768.0,3.6581]
[1610160839550,0.13632608,39769.0,39768.0,0.0002]
[1610160840149,0.13632608,39769.0,39766.0,0.0002]
[1610160840350,0.13632608,39769.0,39768.0,0.0002]
[1610160840549,0.13632608,39769.0,39767.0,0.0002]
[1610160840950,0.13632608,39769.0,39766.0,0.0002]
[1610160841149,0.13632608,39769.0,39768.0,0.0002]
[1610160841353,0.13632608,39769.0,39767.0,0.0002]
[1610160841751,0.13632608,39769.0,39768.0,0.0002]
[1610160841951,0.13632608,39769.0,39766.0,0.0002]
[1610160842152,0.13632608,39769.0,39768.0,0.0002]
[1610160842552,0.13632608,39769.0,39766.0,0.0002]
[1610160842755,0.13632608,39769.0,39768.0,0.0002]
[1610160842952,0.13632608,39769.0,39766.0,0.0002]
[1610160843352,0.13632608,39769.0,39768.0,0.0002]
[1610160843555,0.13632608,39769.0,39766.0,0.0002]
[1610160843753,0.13632608,39769.0,39765.0,0.08229]
[1610160843953,0.13632608,39769.0,39759.0,0.13632608]
[1610160844254,0.13632608,39769.0,39768.0,0.0002]
[1610160844853,0.13632608,39769.0,39768.0,0.0004]
[1610160845254,0.13632608,39769.0,39767.0,0.0002]
[1610160845454,0.13632608,39769.0,39768.0,0.0002]
[1610160845854,0.13632608,39769.0,39767.0,0.0002]
[1610160846056,0.13632608,39769.0,39768.0,0.0002]
[1610160846456,0.13632608,39769.0,39767.0,0.0002]
[1610160846656,0.13632608,39769.0,39768.0,0.0002]
[1610160847259,0.13632608,39769.0,39749.0,0.0078895]
[1610160847456,0.13632608,39769.0,39768.0,0.0002]
[1610160847657,0.13632608,39769.0,39750.0,0.0002]
[1610160847959,0.13632608,39769.0,39768.0,0.0002]
[1610160848259,0.13632608,39769.0,39751.0,0.0002]
[1610160848458,0.13632608,39769.0,39768.0,0.0002]
[1610160848859,0.13632608,39769.0,39752.0,0.0002]
[1610160849059,0.13632608,39769.0,39768.0,0.0002]
[1610160849258,0.13632608,39769.0,39753.0,0.0002]
[1610160849659,0.10027,39772.0,39768.0,0.0002]
[1610160849858,0.10027,39772.0,39754.0,0.0002]
[1610160850058,0.10027,39772.0,39769.0,0.0002]
[1610160850259,0.10027,39772.0,39755.0,0.0002]
[1610160850660,0.10027,39772.0,39749.0,0.0078895]
[1610160850860,0.10027,39772.0,39756.0,0.0002]
[1610160851059,0.10027,39772.0,39750.0,0.0002]
[1610160851262,0.29843203,39769.0,39752.0,3.4385]
[1610160851660,0.13632608,39753.0,39752.0,3.57482608]
[1610160852261,0.13632608,39753.0,39752.0,3.59848531]
[1610160852661,0.29843203,39769.0,39752.0,3.59848531]
[1610160852860,0.29843203,39769.0,39752.0,0.15998531]
[1610160853061,0.29843203,39769.0,39765.0,3.8922]
[1610160853261,0.29843203,39769.0,39758.0,0.09043]
[1610160853461,0.29843203,39769.0,39766.0,0.00788693]
[1610160853661,0.29843203,39769.0,39768.0,0.13632608]
[1610160854061,0.29843203,39769.0,39768.0,0.14421306]
[1610160854261,0.29843203,39769.0,39768.0,0.58391306]
[1610160855362,0.29843203,39769.0,39768.0,0.59967648]
[1610160855563,0.43475811,39769.0,39768.0,0.59967648]
[1610160856666,0.43475811,39769.0,39768.0,0.57602608]
[1610160856863,0.43475811,39769.0,39768.0,0.59967488]
[1610160859567,0.29843203,39769.0,39768.0,0.59967488]
[1610160860970,0.29843203,39769.0,39768.0,0.58391246]
[1610160861169,0.29843203,39769.0,39768.0,0.59961589]
[1610160864777,0.1569,39809.0,39768.0,0.59961589]
[1610160865177,0.41288,39820.0,39768.0,0.59961589]
[1610160865377,0.41288,39820.0,39769.0,0.02576588]
[1610160865577,0.41288,39820.0,39799.0,0.13632608]
[1610160865978,0.41288,39820.0,39808.0,3.9875]
[1610160866177,0.2962,39820.0,39808.0,3.9875]
[1610160866379,0.2962,39820.0,39809.0,0.0002]
[1610160867682,0.13632608,39810.0,39809.0,0.0002]
[1610160868284,0.13632608,39810.0,39805.0,0.0002]
[1610160868484,0.13632608,39810.0,39809.0,0.0002]
[1610160868883,0.13632608,39810.0,39806.0,0.0002]
[1610160869083,0.13632608,39810.0,39809.0,0.0002]
[1610160869283,0.13632608,39810.0,39807.0,0.0002]
[1610160869686,0.13632608,39810.0,39809.0,0.0002]
[1610160869883,0.13632608,39810.0,39808.0,0.0002]
[1610160870083,0.13632608,39810.0,39809.0,0.0002]
[1610160872188,0.13632608,39810.0,39808.0,0.0888]
[1610160875088,0.13632608,39810.0,39804.0,3.4528]
[1610160875687,0.2962,39820.0,39808.0,0.13632608]
[1610160875887,0.2962,39820.0,39808.0,0.22914608]
[1610160877690,0.13632608,39809.0,39808.0,0.22914608]
[1610160880993,0.13632608,39809.0,39808.0,0.09282]
[1610160881192,0.13632608,39809.0,39799.0,0.11231]
[1610160881393,0.13632608,39809.0,39796.0,3.7806]
[1610160881593,0.08378,39830.0,39800.0,0.0002]
[1610160881994,0.2893,39829.0,39800.0,0.1238]
[1610160882194,0.13632608,39801.0,39800.0,0.1238]
[1610160882995,0.13632608,39801.0,39800.0,0.124]
[1610160887600,0.38532,39829.0,39800.0,3.4505]
[1610160888000,0.38532,39829.0,39801.0,0.0002]
[1610160888198,0.38532,39829.0,39808.0,0.13632608]
[1610160888399,0.38532,39829.0,39811.0,0.588]
[1610160888598,0.38532,39829.0,39811.0,0.70339]
[1610160888799,0.38532,39829.0,39812.0,0.0002]
[1610160889200,0.38532,39829.0,39824.0,3.9443]
[1610160889400,0.1569,39849.0,39824.0,3.9443]
[1610160889602,0.1569,39849.0,39825.0,0.0002]
[1610160890203,0.1569,39849.0,39835.0,0.13632608]
[1610160890403,0.1569,39849.0,39836.0,0.5343]
[1610160890601,0.2765,39852.0,39836.0,0.5345]
[1610160890802,0.2765,39852.0,39837.0,0.0002]
[1610160891202,0.2765,39852.0,39833.0,0.0002]
[1610160891401,0.2765,39852.0,39823.0,0.08075]
[1610160891402,0.0003071,39851.0,39823.0,0.08075]
[1610160891604,0.1569,39850.0,39823.0,0.08075]
[1610160892002,0.00030712,39849.0,39824.0,0.0002]
[1610160892204,0.13632608,39825.0,39824.0,0.0002]
[1610160894209,0.13632608,39825.0,39824.0,3.9022]
[1610160895208,0.38864,39852.0,39824.0,3.9022]
[1610160895609,0.38864,39852.0,39825.0,0.0002]
[1610160895812,0.1569,39851.0,39825.0,0.0002]
[1610160896209,0.13632608,39826.0,39825.0,0.0002]
[1610160896911,0.13632608,39826.0,39824.0,0.0002]
[1610160897313,0.13632608,39826.0,39825.0,0.0002]
[1610160897512,0.13632608,39826.0,39825.0,0.4717]
[1610160897714,0.13632608,39826.0,39825.0,0.4715]
[1610160897916,0.13632608,39826.0,39825.0,0.4717]
[1610160905223,0.13632608,39826.0,39825.0,0.0002]
[1610160905424,0.13632608,39826.0,39825.0,3.1679]
[1610160905625,0.13632608,39826.0,39825.0,3.1677]
[1610160905824,0.13632608,39826.0,39825.0,3.1679]
[1610160907625,0.13632608,39826.0,39825.0,0.0002]
[1610160908027,0.13632608,39826.0,39824.0,0.0002]
[1610160908228,0.13632608,39826.0,39825.0,0.0002]
[1610160908827,0.66452608,39826.0,39824.0,0.0002]
[1610160909028,0.66452608,39826.0,39811.0,0.11539]
[1610160909228,0.66452608,39826.0,39800.0,0.1238]
[1610160909229,3.1384,39817.0,39800.0,0.1238]
[1610160909428,3.1384,39817.0,39783.0,3.4961]
[1610160909629,3.1384,39817.0,39801.0,0.0002]
[1610160909828,3.1384,39817.0,39784.0,0.00787905]
[1610160910031,3.1384,39817.0,39802.0,0.0002]
[1610160910230,0.13632608,39803.0,39802.0,0.0002]
[1610160910432,0.13632608,39803.0,39801.0,0.12026]
[1610160910632,0.13632608,39803.0,39802.0,0.00787918]
[1610160920142,0.13632608,39803.0,39802.0,0.0002]
[1610160920541,0.13632608,39803.0,39793.0,0.007882]
[1610160920942,0.13632608,39803.0,39785.0,0.00768236]
[1610160921147,0.13632608,39803.0,39794.0,0.0076827]
[1610160921342,0.13632608,39803.0,39786.0,0.00788287]
[1610160921742,0.13632608,39803.0,39785.0,0.00788319]
[1610160921942,0.13632608,39803.0,39787.0,0.00788338]
[1610160922142,0.13632608,39803.0,39786.0,0.00788374]
[1610160922343,0.13632608,39787.0,39786.0,0.00788374]
[1610160922543,0.13632608,39787.0,39784.0,0.08549]
[1610160922744,0.13632608,39787.0,39786.0,0.0002]
[1610160922943,0.13632608,39787.0,39785.0,0.0002]
[1610160923343,0.13632608,39787.0,39784.0,0.08549]
[1610160923544,0.13632608,39787.0,39776.0,0.09544]
[1610160924045,0.13632608,39787.0,39777.0,0.0002]
[1610160924344,0.13632608,39778.0,39777.0,0.0002]
[1610160925348,0.13632608,39778.0,39776.0,0.09544]
[1610160927949,0.13632608,39778.0,39757.0,3.9341]
[1610160928351,0.13632608,39758.0,39757.0,3.9341]
[1610160928552,0.13632608,39758.0,39738.0,2.43009317]
[1610160928750,0.13632608,39758.0,39757.0,0.0002]
[1610160928952,0.13632608,39758.0,39739.0,0.00788687]
[1610160929152,0.13632608,39758.0,39757.0,0.12546]
[1610160929551,0.13632608,39758.0,39757.0,0.12566]
[1610160931151,0.2848,39790.0,39757.0,0.12566]
[1610160931751,0.2848,39790.0,39758.0,0.0002]
[1610160931952,0.10751,39791.0,39758.0,0.0002]
[1610160932352,0.10751,39791.0,39772.0,0.13632608]
[1610160932554,0.10751,39791.0,39772.0,0.24095608]
[1610160932753,0.2732,39798.0,39772.0,0.24095608]
[1610160932955,0.2732,39798.0,39773.0,0.0002]
[1610160933556,0.2732,39798.0,39774.0,0.0002]
[1610160934058,0.2732,39798.0,39773.0,0.0002]
[1610160934255,0.2732,39798.0,39775.0,0.0002]
[1610160934457,0.2732,39798.0,39777.0,0.13632608]
[1610160934856,0.2732,39798.0,39778.0,0.0002]
[1610160935858,0.08763,39816.0,39778.0,0.0002]
[1610160936258,0.2801,39820.0,39783.0,2.9687]
[1610160936457,0.2801,39820.0,39804.0,0.13632608]
[1610160936660,0.2801,39820.0,39800.0,0.10495]
[1610160937257,0.2801,39820.0,39801.0,0.0002]
[1610160938459,0.13632608,39802.0,39801.0,0.0002]
[1610160945365,0.13632608,39802.0,39784.0,0.0002]
[1610160945567,0.13632608,39802.0,39783.0,2.9687]
[1610160945568,0.13632608,39802.0,39801.0,0.0002]
[1610160945967,0.13632608,39802.0,39788.0,0.09717]
[1610160946168,0.13632608,39802.0,39801.0,0.0002]
[1610160946368,0.13632608,39802.0,39789.0,0.0002]
[1610160946769,0.13632608,39802.0,39801.0,0.0002]
[1610160946970,0.13632608,39802.0,39790.0,0.0002]
[1610160947180,0.13632608,39802.0,39788.0,0.09717]
[1610160947569,0.13632608,39802.0,39791.0,0.0002]
[1610160947772,0.13632608,39802.0,39789.0,0.0002]
[1610160947970,0.13632608,39802.0,39792.0,0.0002]
[1610160948169,0.13632608,39802.0,39790.0,0.0002]
[1610160948370,0.13632608,39791.0,39790.0,0.0002]
[1610160948570,0.13632608,39791.0,39789.0,0.13652608]
[1610160948771,0.13632608,39791.0,39790.0,0.0002]
[1610160949270,0.13632608,39791.0,39790.0,0.00788089]
[1610160950070,0.13632608,39791.0,39790.0,0.0002]
[1610160950670,0.13632608,39791.0,39784.0,0.00788202]
[1610160950871,0.13632608,39791.0,39790.0,0.0002]
[1610160951071,0.13632608,39791.0,39785.0,0.0002]
[1610160951472,0.13632608,39791.0,39778.0,0.00788202]
[1610160951672,0.13632608,39791.0,39786.0,0.0002]
[1610160951872,0.13632608,39791.0,39779.0,0.0002]
[1610160952274,0.13632608,39791.0,39778.0,0.00788202]
[1610160952472,0.13632608,39779.0,39778.0,0.00768202]
[1610160953074,0.13632608,39779.0,39773.0,0.00788195]
[1610160953272,0.13632608,39779.0,39778.0,0.00788195]
[1610160953473,0.13632608,39779.0,39774.0,0.00788299]
[1610160953873,0.13632608,39779.0,39773.0,0.00788356]
[1610160954072,0.13632608,39779.0,39775.0,0.00788372]
[1610160954273,0.13632608,39779.0,39774.0,0.00788435]
[1610160954472,0.13632608,39775.0,39774.0,0.14421043]
[1610160954673,0.13632608,39775.0,39774.0,0.13632608]
[1610160954874,0.13632608,39775.0,39774.0,0.14421035]
[1610160955573,0.13632608,39775.0,39774.0,0.00788427]
[1610160955976,0.13632608,39775.0,39773.0,0.00788434]
[1610160956176,0.13632608,39775.0,39774.0,0.00788463]
[1610160956677,0.13632608,39775.0,39773.0,0.00788489]
[1610160957076,0.13632608,39775.0,39772.0,0.10463]
[1610160957077,0.13632608,39775.0,39774.0,0.0002]
[1610160957480,0.13632608,39775.0,39773.0,0.0002]
[1610160957678,0.13632608,39775.0,39774.0,0.0002]
[1610160958078,0.13632608,39775.0,39773.0,0.00788509]
[1610160958280,0.13632608,39775.0,39774.0,0.0002]
[1610160958879,0.13632608,39775.0,39773.0,0.00788509]
[1610160959080,0.13632608,39775.0,39774.0,0.0002]
[1610160959880,0.13632608,39775.0,39773.0,0.00768509]
[1610160959881,0.13632608,39775.0,39773.0,0.00788509]
[1610160960082,0.13632608,39775.0,39774.0,0.0002]
[1610160960682,0.13632608,39775.0,39773.0,0.00788509]
[1610160960881,0.13632608,39775.0,39774.0,0.0002]
[1610160961484,0.13632608,39775.0,39773.0,0.00788509]
[1610160961684,0.13632608,39775.0,39774.0,0.0002]
[1610160962285,0.13632608,39775.0,39773.0,0.00788509]
[1610160962485,0.13632608,39775.0,39774.0,0.0002]
[1610160963086,0.13632608,39775.0,39773.0,0.00788509]
[1610160963287,0.13632608,39775.0,39774.0,0.0002]
[1610160963889,0.13632608,39775.0,39773.0,0.00788509]
[1610160964088,0.13632608,39775.0,39774.0,0.0002]
[1610160964689,0.13632608,39775.0,39773.0,0.00788509]
[1610160964889,0.13632608,39775.0,39774.0,0.0002]
[1610160965489,0.13632608,39775.0,39773.0,0.00788509]
[1610160965690,0.13632608,39775.0,39774.0,0.0002]
[1610160966290,0.13632608,39775.0,39773.0,0.00788509]
[1610160966492,0.13632608,39775.0,39774.0,0.0002]
[1610160967090,0.13632608,39775.0,39773.0,0.00788509]
[1610160967291,0.13632608,39775.0,39774.0,0.0002]
[1610160967792,0.13632608,39775.0,39773.0,0.00788509]
[1610160967993,0.13632608,39775.0,39774.0,0.0002]
[1610160968393,0.13632608,39775.0,39773.0,0.00788509]
[1610160968592,0.13632608,39775.0,39774.0,0.0002]
[1610160969093,0.13632608,39775.0,39773.0,0.00788509]
[1610160969292,0.13632608,39775.0,39774.0,0.0002]
[1610160969693,0.13632608,39775.0,39773.0,0.00788509]
[1610160969894,0.13632608,39775.0,39774.0,0.0002]
[1610160970394,0.13632608,39775.0,39773.0,0.00788509]
[1610160970793,0.13632608,39775.0,39774.0,0.0002]
[1610160971194,0.13632608,39775.0,39773.0,0.02656302]
[1610160971494,0.13632608,39775.0,39774.0,0.0002]
[1610160972095,0.13632608,39775.0,39773.0,0.02656302]
[1610160972295,0.13632608,39775.0,39774.0,0.0002]
[1610160972496,0.13632608,39775.0,39774.0,0.00788393]
[1610160972897,0.13632608,39775.0,39773.0,0.00788395]
[1610160973096,0.13632608,39775.0,39774.0,0.00788391]
[1610160973697,0.13632608,39775.0,39773.0,0.00788391]
[1610160973896,0.13632608,39775.0,39774.0,0.00788393]
[1610160974497,0.13632608,39775.0,39773.0,0.00788485]
[1610160974699,0.13632608,39775.0,39774.0,0.00788504]
[1610160975299,0.13632608,39775.0,39773.0,0.00788518]
[1610160975501,0.13632608,39775.0,39774.0,0.0078851]
[1610160976099,0.13632608,39775.0,39773.0,0.00788549]
[1610160976300,0.13632608,39775.0,39772.0,0.10463]
[1610160976301,0.13632608,39775.0,39774.0,0.0002]
[1610160976700,0.13632608,39775.0,39773.0,0.0002]
[1610160977301,3.8898,39774.0,39773.0,0.0002]
[1610160978603,3.8898,39774.0,39758.0,0.00788702]
[1610160979005,3.8898,39774.0,39773.0,0.0002]
[1610160979205,3.8898,39774.0,39759.0,0.0002]
[1610160979406,3.8898,39774.0,39773.0,0.0002]
[1610160979607,3.8898,39774.0,39758.0,0.00788729]
[1610160980612,0.13632608,39759.0,39758.0,0.00788729]
[1610160980810,0.13632608,39759.0,39758.0,0.0002]
[1610160981610,0.13632608,39759.0,39758.0,0.00788791]
[1610160983315,0.13632608,39759.0,39758.0,0.0002]
[1610160984719,3.8898,39774.0,39758.0,0.0002]
[1610160985320,0.13632608,39759.0,39758.0,0.0002]
[1610160985519,0.13632608,39759.0,39749.0,0.00788903]
[1610160985721,0.13632608,39759.0,39758.0,0.0002]
[1610160986121,0.13632608,39759.0,39750.0,0.0002]
[1610160986322,0.13632608,39759.0,39758.0,0.0002]
[1610160986520,0.13632608,39759.0,39751.0,0.0002]
[1610160986723,0.13632608,39759.0,39758.0,0.0002]
[1610160987121,3.82882608,39759.0,39743.0,0.0002]
[1610160987321,3.05242608,39744.0,39718.0,0.01809548]
[1610160987522,3.05242608,39744.0,39714.0,3.0188]
[1610160987922,3.05242608,39744.0,39715.0,0.00789076]
[1610160988120,3.05242608,39744.0,39715.0,0.10032076]
[1610160988720,3.05242608,39744.0,39716.0,0.00789167]
[1610160989322,2.9161,39744.0,39719.0,0.13632608]
[1610160989723,0.10536,39754.0,39719.0,0.13632608]
[1610160989724,0.10536,39754.0,39720.0,0.00789148]
[1610160989922,0.10536,39754.0,39721.0,3.8135]
[1610160990522,0.10536,39754.0,39722.0,0.00789076]
[1610160991225,0.13632608,39723.0,39722.0,0.0002]
[1610160991624,0.13632608,39723.0,39715.0,0.09243]
[1610160991824,0.13632608,39723.0,39722.0,0.0002]
[1610160992023,0.13632608,39723.0,39716.0,0.0002]
[1610160992424,0.13632608,39723.0,39722.0,0.0002]
[1610160992625,0.62992608,39723.0,39715.0,0.09243]
[1610160993026,0.62992608,39723.0,39716.0,0.0002]
[1610160993225,0.13632608,39723.0,39716.0,0.0002]
[1610160993426,0.13632608,39717.0,39714.0,0.07742]
[1610160994825,4.29852608,39717.0,39714.0,0.07742]
[1610160995225,4.29852608,39717.0,39715.0,0.0002]
[1610160995426,4.29852608,39717.0,39714.0,0.07742]
[1610160997029,0.13632608,39717.0,39714.0,0.07742]
[1610160997228,3.3806,39715.0,39714.0,0.07742]
[1610160998433,0.13632608,39717.0,39676.0,2.41754858]
[1610160998632,3.7805,39704.0,39675.0,2.41635229]
[1610160998835,3.7805,39704.0,39677.0,0.0002]
[1610160999434,0.13632608,39678.0,39677.0,0.0002]
[1610160999834,3.7805,39704.0,39677.0,0.0002]
[1610161001236,3.7805,39704.0,39676.0,0.12119]
[1610161001440,0.11728,39707.0,39699.0,0.13632608]
[1610161001638,3.98378,39707.0,39691.0,0.08702]
[1610161002840,0.11728,39707.0,39691.0,0.08702]
[1610161003041,3.6117,39692.0,39691.0,0.08702]
[1610161003440,3.74802608,39692.0,39691.0,0.08702]
[1610161004444,3.74802608,39692.0,39676.0,0.12119]
[1610161004644,3.74802608,39692.0,39659.0,3.9982]
[1610161005243,0.13632608,39692.0,39650.0,2.40938708]
[1610161005444,4.051,39689.0,39663.0,0.13632608]
[1610161005644,4.051,39689.0,39663.0,0.24337608]
[1610161007345,0.13632608,39674.0,39673.0,0.13632608]
[1610161008047,4.051,39689.0,39673.0,0.25235608]
[1610161008647,0.08043,39698.0,39673.0,0.25235608]
[1610161009350,0.08043,39698.0,39677.0,0.13632608]
[1610161010751,4.1438,39708.0,39677.0,0.13632608]
[1610161011352,0.2999,39710.0,39694.0,0.13632608]
[1610161013454,0.13632608,39705.0,39702.0,0.13632608]
[1610161014155,0.13632608,39705.0,39693.0,0.08901]
[1610161015357,0.2999,39710.0,39697.0,0.13632608]
[1610161017360,0.2999,39710.0,39705.0,0.13632608]
[1610161017559,0.2999,39710.0,39693.0,0.08901]
[1610161017961,0.2999,39710.0,39690.0,3.4779]
[1610161018861,0.2999,39710.0,39682.0,0.10386]
[1610161019260,0.2999,39710.0,39672.0,3.3248]
[1610161019463,0.2999,39710.0,39693.0,0.13632608]
[1610161019861,0.2999,39710.0,39689.0,0.11235]
[1610161020763,0.2999,39710.0,39672.0,3.3248]
[1610161021363,3.1263,39712.0,39697.0,0.13632608]
[1610161021563,0.2909,39714.0,39697.0,0.13632608]
[1610161022564,0.08906,39715.0,39697.0,0.13632608]
[1610161022764,0.12253,39731.0,39697.0,0.24454608]
[1610161022966,0.41083,39731.0,39707.0,3.8213]
[1610161023167,0.41083,39731.0,39707.0,3.94852]
[1610161023363,0.13632608,39729.0,39727.0,0.13632608]
[1610161024764,0.09863,39748.0,39727.0,0.13632608]
[1610161024966,0.09863,39748.0,39730.0,4.0792]
[1610161025367,0.13632608,39753.0,39747.0,0.13632608]
[1610161026167,0.2976,39774.0,39739.0,0.10428]
[1610161026567,0.00030763,39773.0,39739.0,0.10428]
[1610161026767,0.08268763,39773.0,39739.0,0.10428]
[1610161026966,0.08238,39773.0,39740.0,0.5391]
[1610161027369,0.08238,39773.0,39757.0,0.13632608]
[1610161027568,0.08238,39773.0,39740.0,0.46976538]
[1610161028769,0.08238,39773.0,39739.0,0.10428]
[1610161029171,0.08238,39773.0,39748.0,4.0696]
[1610161029369,0.08238,39773.0,39748.0,4.18756]
[1610161029569,0.13632608,39760.0,39754.0,0.13632608]
[1610161031572,0.13632608,39755.0,39754.0,0.13632608]
[1610161031971,0.2976,39774.0,39754.0,0.13632608]